bitfinex/quotes_SOLUSD_20260305
["timestamp","ask_amount","ask_price","bid_price","bid_amount"]
[1772679345123,2.30745485,90.099,90.069,2.26526283]
[1772679345325,2.30745485,90.099,90.073,2.23925103]
[1772679345629,2.30745485,90.099,90.078,2.23925103]
[1772679346823,2.30745485,90.097,90.078,2.23925103]
[1772679349138,2.30745485,90.097,90.065,11.1030821]
[1772679349139,2.22314656,90.095,90.07,2.13815743]
[1772679351016,2.22314656,90.095,90.06,0.1]
[1772679351017,2.22314656,90.089,90.061,2.0893357]
[1772679351310,11.09894764,90.099,90.063,2.06534459]
[1772679351940,13.3220942,90.099,90.063,2.06534459]
[1772679352233,2.22314656,90.098,90.063,2.06534459]
[1772679353330,13.32229525,90.097,90.065,2.01818591]
[1772679353530,2.22314656,90.096,90.065,2.01818591]
[1772679354731,11.09914869,90.097,90.065,2.01818591]
[1772679354937,2.22314656,90.117,90.065,2.01818591]
[1772679355436,2.22314656,90.117,90.064,38.86125421]
[1772679355437,2.22314656,90.115,90.067,1.97210433]
[1772679363128,2.22314656,90.109,90.069,1.81895087]
[1772679363837,38.83969194,90.114,90.06,1.8980654]
[1772679363838,2.22314656,90.099,90.06,1.8980654]
[1772679364043,2.22314656,90.089,90.06,1.8980654]
[1772679365140,2.22314656,90.087,90.06,1.8980654]
[1772679366940,2.22314656,90.087,90.06,0.1]
[1772679368141,2.22314656,90.085,90.06,0.1]
[1772679368345,2.22314656,90.085,90.046,1.69718178]
[1772679368641,2.22314656,90.079,90.046,1.69718178]
[1772679368841,2.22314656,90.069,90.017,30.0]
[1772679369035,2.22314656,90.085,90.041,11.10605168]
[1772679369236,2.22314656,90.085,90.041,38.87118089]
[1772679370146,11.09983565,90.092,90.033,0.28432314]
[1772679370440,2.22314656,90.091,90.033,0.28432314]
[1772679371848,11.09983565,90.092,90.033,0.28432314]
[1772679372447,2.22314656,90.093,90.037,3.69383402]
[1772679373480,2.22314656,90.118,90.042,0.28432314]
[1772679374355,11.09643915,90.119,90.045,3.69383402]
[1772679374863,2.22314656,90.118,90.045,3.69383402]
[1772679375850,2.22314656,90.118,90.042,5.10909883]
[1772679375851,2.22314656,90.116,90.05,0.28432314]
[1772679377150,2.22314656,90.142,90.059,3.69383402]
[1772679377447,2.22314656,90.142,90.064,0.28432314]
[1772679377652,2.22314656,90.142,90.069,8.80293285]
[1772679377954,2.22314656,90.148,90.075,3.69383402]
[1772679378149,11.09299255,90.147,90.077,0.28432314]
[1772679378350,13.31613911,90.147,90.08,0.28432314]
[1772679378646,2.03606787,90.146,90.084,3.97815716]
[1772679378849,2.03606787,90.153,90.085,1.11006271]
[1772679379855,11.09237731,90.152,90.09,0.28432314]
[1772679380037,2.03606787,90.151,90.089,3.69383402]
[1772679380636,2.03606787,90.159,90.09,0.28432314]
[1772679380846,2.03606787,90.158,90.092,0.28432314]
[1772679381052,2.03606787,90.158,90.094,0.28432314]
[1772679381562,2.03606787,90.158,90.089,3.69383402]
[1772679382337,2.03606787,90.156,90.093,3.69383402]
[1772679382652,4.25124819,90.15,90.093,3.69383402]
[1772679382846,2.03606787,90.139,90.093,3.69383402]
[1772679383157,2.03606787,90.139,90.09,11.1000111]
[1772679385756,2.03606787,90.137,90.081,3.69383402]
[1772679388765,2.03606787,90.119,90.068,27.75656614]
[1772679389071,38.83021212,90.136,90.049,49.94]
[1772679389072,2.03606787,90.099,90.05,11.10494169]
[1772679390568,2.03606787,90.099,90.05,38.86729593]
[1772679391064,2.03606787,90.097,90.05,38.86729593]
[1772679391750,2.03606787,90.097,90.05,11.10494169]
[1772679392969,2.03606787,90.095,90.038,27.76577686]
[1772679396068,2.03606787,90.093,90.032,3.69383402]
[1772679398555,2.03606787,90.091,90.033,38.87463485]
[1772679401360,2.03606787,90.089,90.033,27.76759632]
[1772679403678,2.03606787,90.087,90.033,27.76759632]
[1772679407379,38.85090133,90.088,90.033,27.76759632]
[1772679407380,2.03606787,90.085,90.033,27.76759632]
[1772679409282,2.03606787,90.083,90.033,27.76759632]
[1772679411480,2.03606787,90.081,90.033,27.76759632]
[1772679414296,2.03606787,90.079,90.033,27.76759632]
[1772679418890,2.03606787,90.088,90.033,27.76759632]
[1772679420598,2.03606787,90.105,90.037,0.28432314]
[1772679420765,2.03606787,90.105,90.036,3.69383402]
[1772679420766,2.03606787,90.105,90.043,0.28432314]
[1772679421474,2.03606787,90.103,90.043,0.28432314]
[1772679423272,2.03606787,90.101,90.047,3.69383402]
[1772679425193,2.03606787,90.127,90.048,0.28432314]
[1772679425393,2.03606787,90.125,90.053,0.28432314]
[1772679425970,2.03606787,90.125,90.053,8.80293285]
[1772679428093,2.03606787,90.123,90.059,3.97815716]
[1772679429287,2.03606787,90.123,90.064,0.28432314]
[1772679431898,2.03606787,90.123,90.068,3.97815716]
[1772679432080,2.03606787,90.123,90.073,0.28432314]
[1772679432281,2.03606787,90.146,90.077,0.28432314]
[1772679433178,2.03606787,90.139,90.07,0.28432314]
[1772679433520,2.03606787,90.139,90.069,3.69383402]
[1772679434393,2.03606787,90.137,90.073,3.69383402]
[1772679434598,2.03606787,90.137,90.074,0.28432314]
[1772679437394,2.03606787,90.135,90.078,3.69383402]
[1772679438299,11.09459249,90.134,90.079,38.85478301]
[1772679438598,2.03606787,90.133,90.082,3.69383402]
[1772679440499,11.09455049,90.135,90.083,38.85305772]
[1772679440500,2.03606787,90.131,90.083,38.85305772]
[1772679444286,2.03606787,90.129,90.083,27.75218409]
[1772679446109,2.03606787,90.129,90.084,0.28432314]
[1772679446689,2.03606787,90.129,90.085,38.85219514]
[1772679449011,2.03606787,90.127,90.081,3.69383402]
[1772679451613,2.03606787,90.125,90.082,38.85348903]
[1772679453807,2.03606787,90.125,90.082,94.35847337]
[1772679454895,11.09366366,90.142,90.084,1.69008634]
[1772679456317,4.2537175,90.16,90.089,1.68839278]
[1772679456906,1.72616909,90.159,90.089,1.68839278]
[1772679458206,1.72616909,90.157,90.094,1.68342795]
[1772679460000,1.72616909,90.155,90.096,1.68181087]
[1772679461797,1.72616909,90.155,90.099,1.67747873]
[1772679462113,1.72616909,90.153,90.104,1.67747873]
[1772679465405,1.72616909,90.151,90.106,1.66910902]
[1772679466804,1.72616909,90.151,90.107,1.10979169]
[1772679467022,1.72616909,90.151,90.109,1.66707633]
[1772679468126,1.72616909,90.151,90.114,1.66506699]
[1772679468622,1.72616909,90.16,90.114,1.66506699]
[1772679470127,1.72616909,90.16,90.116,1.65917638]
[1772679471323,1.72616909,90.16,90.118,1.6553612]
[1772679472321,1.79490831,90.158,90.118,1.6553612]
[1772679474528,1.79490831,90.156,90.12,1.64980121]
[1772679476238,1.79490831,90.154,90.122,1.64620017]
[1772679476538,1.79490831,90.154,90.121,38.83667513]
[1772679479535,1.79490831,90.154,90.115,1.64620017]
[1772679479716,1.79490831,90.152,90.116,11.09680855]
[1772679480942,1.79490831,90.152,90.117,1.63924295]
[1772679482240,1.79490831,90.152,90.118,38.83796799]
[1772679482539,1.79490831,90.152,90.119,1.63588306]
[1772679483040,1.79490831,90.151,90.119,1.63588306]
[1772679486847,1.79490831,90.151,90.12,11.09631602]
[1772679487049,1.79490831,90.151,90.121,1.62939174]
[1772679489741,1.79490831,90.151,90.123,1.62471636]
[1772679491240,11.0926234,90.15,90.123,1.62471636]
[1772679491455,1.79490831,90.149,90.123,1.62471636]
[1772679495536,1.79490831,90.163,90.125,1.61583796]
[1772679497140,1.79490831,90.163,90.12,11.09625688]
[1772679497655,1.79490831,90.161,90.121,1.61301264]
[1772679498347,1.79490831,90.161,90.12,38.83704693]
[1772679499735,1.73324441,90.159,90.12,11.09625688]
[1772679500253,1.73324441,90.159,90.103,1.60755411]
[1772679500434,1.73324441,90.149,90.103,1.60755411]
[1772679501956,1.73324441,90.147,90.105,1.60622844]
[1772679504457,1.73324441,90.145,90.107,1.60234209]
[1772679507368,1.73324441,90.145,90.109,1.59736543]
[1772679510479,1.73324441,90.145,90.111,1.59378098]
[1772679512570,1.73324441,90.145,90.113,1.59145944]
[1772679515354,1.73324441,90.145,90.115,1.58807617]
[1772679517060,1.8137909,90.156,90.115,1.58807617]
[1772679517574,1.8137909,90.156,90.117,1.58588493]
[1772679519376,1.8137909,90.156,90.119,1.58374374]
[1772679520475,11.0920082,90.155,90.119,1.58374374]
[1772679520780,1.8137909,90.154,90.119,1.58374374]
[1772679521564,1.8137909,90.152,90.12,11.09631602]
[1772679524575,1.8137909,90.15,90.118,27.74129421]
[1772679524785,1.8137909,90.15,90.119,1.57860228]
[1772679525777,1.8137909,90.17,90.119,1.57860228]
[1772679525987,1.8137909,90.169,90.119,1.57860228]
[1772679526767,1.8137909,90.167,90.121,1.57662743]
[1772679530988,1.71795727,90.165,90.123,1.57188538]
[1772679534486,1.71795727,90.163,90.125,1.56828409]
[1772679537494,1.71795727,90.163,90.127,1.56569026]
[1772679538297,1.71795727,90.161,90.127,1.56569026]
[1772679540590,1.71795727,90.161,90.129,1.56318479]
[1772679542192,1.71795727,90.161,90.131,1.56236874]
[1772679544183,1.71795727,90.159,90.133,1.56076466]
[1772679545107,1.71795727,90.179,90.133,1.56076466]
[1772679545396,1.71795727,90.179,90.132,38.83193538]
[1772679545397,1.71795727,90.179,90.135,1.55997641]
[1772679546183,1.71795727,90.179,90.137,1.55919722]
[1772679548606,1.71795727,90.179,90.139,1.55691292]
[1772679550405,1.71795727,90.179,90.141,1.55616891]
[1772679553405,1.71795727,90.199,90.143,1.55327736]
[1772679553640,1.71795727,90.199,90.146,1.55327736]
[1772679553790,1.71795727,90.199,90.148,1.55327736]
[1772679554417,1.71795727,90.198,90.148,1.55327736]
[1772679556106,1.71795727,90.196,90.15,1.55188092]
[1772679558602,1.71795727,90.196,90.146,1.10931156]
[1772679558603,1.71795727,90.196,90.152,1.54984585]
[1772679560414,11.08708908,90.195,90.153,38.82288996]
[1772679560715,1.68705827,90.194,90.154,1.54788009]
[1772679561807,1.68705827,90.194,90.154,1.54723983]
[1772679562714,1.68705827,90.194,90.156,1.54660693]
[1772679563810,1.68705827,90.194,90.158,1.5459813]
[1772679567014,1.68705827,90.194,90.159,38.82030633]
[1772679567207,1.68705827,90.194,90.16,1.54414718]
[1772679567514,0.2,90.2,90.16,1.54414718]
[1772679568709,1e-08,90.21,90.167,0.14216157]
[1772679568909,1e-08,90.21,90.173,1.82669868]
[1772679569110,1e-08,90.21,90.181,0.28432314]
[1772679569304,1e-08,90.21,90.184,1.54237554]
[1772679570012,11.08184666,90.238,90.179,1.99589119]
[1772679570312,11.08224271,90.235,90.179,1.99589119]
[1772679571517,11.08224271,90.235,90.181,1.99589119]
[1772679571911,1.70813624,90.229,90.181,1.99589119]
[1772679572415,1.70813624,90.228,90.181,1.71156805]
[1772679573516,1.70813624,90.226,90.183,1.71156805]
[1772679575624,1.70813624,90.224,90.185,1.71156805]
[1772679577603,1.70813624,90.222,90.186,11.0881955]
[1772679578315,1.70813624,90.222,90.175,11.0895481]
[1772679579225,1.70813624,90.222,90.176,1.71156805]
[1772679580506,1.70813624,90.22,90.178,1.71156805]
[1772679583662,1.70813624,90.218,90.18,1.71156805]
[1772679585628,1.70813624,90.225,90.182,1.71156805]
[1772679586730,1.70813624,90.224,90.182,1.71156805]
[1772679587735,11.08364829,90.223,90.184,1.71156805]
[1772679587938,1.70813624,90.222,90.184,1.71156805]
[1772679588540,1.70813624,90.222,90.183,11.08856436]
[1772679588928,1.70813624,90.222,90.184,1.68589632]
[1772679589849,1.71009715,90.22,90.186,1.68589632]
[1772679590539,1.71009715,90.22,90.185,11.08831845]
[1772679591131,1.71009715,90.22,90.176,11.08942512]
[1772679592442,1.71009715,90.218,90.171,1.68589632]
[1772679594542,1.71009715,90.216,90.173,1.68589632]
[1772679597443,1.71009715,90.216,90.172,38.81470965]
[1772679597444,1.71009715,90.214,90.174,11.08967108]
[1772679599651,1.71009715,90.212,90.17,1.68589632]
[1772679601728,1.71009715,90.21,90.172,1.68589632]
[1772679601932,1.71009715,90.21,90.171,11.09004003]
[1772679602733,1.71009715,90.21,90.172,1.68589632]
[1772679603151,1.71009715,90.21,90.154,55.46031]
[1772679603152,1.71009715,90.199,90.146,1.68589632]
[1772679604145,1.71009715,90.197,90.148,1.68589632]
[1772679605843,1.71009715,90.195,90.15,1.68589632]
[1772679609453,1.71009715,90.195,90.152,1.68589632]
[1772679610957,1.71009715,90.193,90.152,1.68589632]
[1772679612170,1.71009715,90.191,90.154,1.68589632]
[1772679613699,38.80610252,90.192,90.14,1.68589632]
[1772679613700,0.33609662,90.179,90.14,1.68589632]
[1772679614858,0.3401089,90.177,90.141,12.81581779]
[1772679615163,0.3401089,90.177,90.142,1.72208686]
[1772679616661,0.34799575,90.175,90.144,1.72208686]
[1772679620872,0.35112247,90.173,90.146,1.87733373]
[1772679623280,0.34294647,90.171,90.139,1.87733373]
[1772679624367,0.33495722,90.199,90.141,1.87733373]
[1772679625475,0.33103128,90.205,90.148,0.28432314]
[1772679625775,0.33103128,90.205,90.155,1.87733373]
[1772679626366,0.33103128,90.205,90.157,1.87733373]
[1772679627085,0.32715044,90.203,90.157,1.87733373]
[1772679628662,0.32715044,90.203,90.159,1.87046391]
[1772679628866,0.31577332,90.223,90.162,2.15478705]
[1772679629978,11.39597367,90.221,90.162,2.15478705]
[1772679630760,11.39597367,90.221,90.167,1.87046391]
[1772679631378,0.30478375,90.22,90.167,1.87046391]
[1772679632760,0.2,90.23,90.131,154.28]
[1772679632761,0.30120439,90.218,90.169,1.87046391]
[1772679633778,11.08438542,90.217,90.17,38.81557058]
[1772679633993,0.29766614,90.216,90.171,1.87046391]
[1772679636565,0.28729336,90.214,90.173,1.87046391]
[1772679638479,0.28057523,90.212,90.175,1.87046391]
[1772679643565,0.28057523,90.212,90.177,1.87046391]
[1772679644167,11.08512265,90.211,90.177,1.87046391]
[1772679644387,11.34956621,90.211,90.177,1.87046391]
[1772679645685,0.25824732,90.21,90.178,38.81212711]
[1772679645887,0.25824732,90.21,90.179,1.87046391]
[1772679648581,0.25824732,90.21,90.181,1.87046391]
[1772679649577,0.25824732,90.21,90.183,1.83459297]
[1772679649777,0.24336882,90.218,90.183,1.83459297]
[1772679652088,0.24336882,90.218,90.185,1.83459297]
[1772679652292,0.23765392,90.222,90.185,1.83459297]
[1772679653588,0.2,90.23,90.185,1.83459297]
[1772679653775,0.23206955,90.229,90.185,1.83459297]
[1772679654188,0.23206955,90.227,90.187,1.83459297]
[1772679656099,0.22661273,90.225,90.188,12.92254258]
[1772679656394,0.22661273,90.225,90.189,1.83459297]
[1772679656783,0.22661273,90.225,90.188,11.08794961]
[1772679656992,0.22661273,90.225,90.184,11.0884001]
[1772679657671,0.22661273,90.225,90.18,11.08889813]
[1772679657872,0.22128055,90.219,90.18,11.08889813]
[1772679658178,0.22128055,90.217,90.18,11.08889813]
[1772679658709,11.08303409,90.228,90.181,1.83459297]
[1772679658891,0.2186603,90.227,90.181,1.83459297]
[1772679659800,0.21607015,90.225,90.183,1.83459297]
[1772679661194,0.2,90.23,90.183,1.83459297]
[1772679661396,0.2,90.23,90.185,1.83459297]
[1772679661703,0.2,90.23,90.186,1.83459297]
[1772679662200,0.2,90.23,90.188,1.83459297]
[1772679664188,0.2,90.23,90.19,1.83459297]
[1772679666391,0.2,90.23,90.184,0.28432314]
[1772679666392,0.2,90.23,90.192,1.83459297]
[1772679669489,0.2,90.23,90.194,1.83459297]
[1772679672610,0.2,90.23,90.196,1.83459297]
[1772679673613,0.18278157,90.229,90.196,1.83459297]
[1772679675099,0.18278157,90.229,90.195,38.80481179]
[1772679675100,0.18060352,90.228,90.182,1.83459297]
[1772679676301,0.18060352,90.228,90.183,1.83459297]
[1772679678120,0.17421833,90.226,90.185,1.83459297]
[1772679681728,0.16405601,90.224,90.187,1.74706417]
[1772679683020,0.16405601,90.224,90.181,1.74706417]
[1772679683611,0.16015262,90.222,90.183,1.74706417]
[1772679686121,0.15633839,90.22,90.185,1.74706417]
[1772679688429,0.14896928,90.218,90.179,1.79305894]
[1772679690530,0.14896928,90.218,90.18,11.08893324]
[1772679690731,0.14896928,90.218,90.181,1.79305894]
[1772679691920,0.14896928,90.218,90.183,1.79305894]
[1772679693518,0.14896928,90.218,90.185,1.79305894]
[1772679694036,0.14896928,90.218,90.18,12.88193344]
[1772679694408,0.14896928,90.218,90.18,1.79305894]
[1772679694628,0.14896928,90.218,90.181,11.08881028]
[1772679694808,0.14896928,90.218,90.165,1.79305894]
[1772679695414,0.13853485,90.209,90.156,38.82159811]
[1772679695622,0.13686502,90.208,90.159,1.79305894]
[1772679697917,0.13686502,90.208,90.135,3.69383402]
[1772679697918,0.13686502,90.208,90.161,1.79305894]
[1772679700438,0.13686502,90.208,90.162,38.81901465]
[1772679700629,0.12879918,90.224,90.163,1.79305894]
[1772679702739,0.12879918,90.224,90.165,1.79305894]
[1772679704343,0.12879918,90.224,90.167,1.79305894]
[1772679707846,0.12879918,90.224,90.169,1.79305894]
[1772679710230,0.12879918,90.224,90.171,1.72208686]
[1772679711667,11.08291125,90.229,90.175,1.72208686]
[1772679713161,0.2,90.23,90.175,1.72208686]
[1772679713754,0.2,90.23,90.177,1.72208686]
[1772679714129,0.10854302,90.219,90.176,11.08942512]
[1772679714327,0.10854302,90.209,90.177,1.72208686]
[1772679714548,0.10721767,90.219,90.177,1.72208686]
[1772679714746,0.10721767,90.228,90.177,1.72208686]
[1772679715846,0.10721767,90.228,90.179,1.72208686]
[1772679718028,0.10721767,90.228,90.181,1.72208686]
[1772679719437,4.24667832,90.22,90.181,1.72208686]
[1772679719638,0.10081582,90.219,90.181,1.72208686]
[1772679720047,0.10081582,90.218,90.183,1.72208686]
[1772679720427,11.0841397,90.219,90.183,1.72208686]
[1772679720630,11.08303409,90.228,90.183,1.72208686]
[1772679721129,0.2,90.23,90.185,1.72208686]
[1772679722341,0.2,90.23,90.187,1.72208686]
[1772679725255,0.2,90.23,90.189,1.72208686]
[1772679726057,0.2,90.24,90.192,1.92500686]
[1772679727440,0.2,90.24,90.195,1.64068372]
[1772679727759,0.2,90.27,90.204,0.14216157]
[1772679727938,0.2,90.27,90.216,1.64068372]
[1772679728438,0.69018434,90.268,90.216,1.64068372]
[1772679728638,0.69018434,90.259,90.197,1.64068372]
[1772679728837,0.69018434,90.259,90.198,30.0]
[1772679729041,0.69018434,90.259,90.199,1.64068372]
[1772679729749,0.68906986,90.257,90.201,1.64068372]
[1772679729947,0.68906986,90.249,90.201,1.64068372]
[1772679732062,4.24667832,90.25,90.203,1.64068372]
[1772679732063,0.68651673,90.247,90.203,1.64068372]
[1772679734062,0.68098831,90.245,90.203,1.64068372]
[1772679734565,0.68098831,90.245,90.204,11.08598288]
[1772679734775,0.68098831,90.245,90.205,1.64068372]
[1772679737258,0.66898735,90.243,90.207,1.64068372]
[1772679737559,11.0810691,90.244,90.207,1.64068372]
[1772679737962,0.66507857,90.243,90.207,1.64068372]
[1772679738150,0.66507857,90.243,90.206,12.72642081]
[1772679738550,0.66507857,90.243,90.207,1.73987905]
[1772679739448,0.65361956,90.241,90.207,1.73987905]
[1772679741280,0.65361956,90.241,90.205,11.08578883]
[1772679741761,0.6461979,90.239,90.205,11.08578883]
[1772679743064,0.64255088,90.237,90.205,11.08578883]
[1772679743261,0.64255088,90.237,90.206,1.73987905]
[1772679747665,0.62153179,90.235,90.207,12.66799478]
[1772679748174,0.62153179,90.235,90.208,1.58238059]
[1772679748557,0.62153179,90.235,90.199,11.08650021]
[1772679748786,0.62153179,90.235,90.2,1.58238059]
[1772679750269,0.62153179,90.235,90.199,11.08650021]
[1772679750270,0.61484302,90.233,90.202,1.58238059]
[1772679752955,4.24488708,90.26,90.169,11.60894219]
[1772679752956,0.60509521,90.287,90.207,0.28432314]
[1772679753275,0.60509521,90.268,90.208,1.58238059]
[1772679755063,0.59878185,90.266,90.21,1.58238059]
[1772679756302,0.2,90.27,90.21,1.58238059]
[1772679756457,11.07800019,90.269,90.21,1.58238059]
[1772679757060,0.59261268,90.266,90.212,1.58238059]
[1772679759572,11.0784911,90.265,90.212,1.66039982]
[1772679760783,11.07800019,90.269,90.213,38.79706915]
[1772679761077,11.07800019,90.269,90.214,1.66039982]
[1772679761281,0.2,90.27,90.218,1.66039982]
[1772679762273,11.27788333,90.27,90.218,1.66039982]
[1772679762683,0.09831188,90.269,90.218,1.66039982]
[1772679762867,0.09831188,90.269,90.22,1.66039982]
[1772679765166,11.27788333,90.27,90.223,0.14216157]
[1772679765167,0.2,90.27,90.223,0.14216157]
[1772679765369,0.2,90.27,90.228,1.66039982]
[1772679767682,1e-08,90.27,90.23,1.66039982]
[1772679769182,1e-08,90.27,90.232,1.69780818]
[1772679771492,1e-08,90.27,90.233,11.08241995]
[1772679771695,1e-08,90.27,90.234,1.69780818]
[1772679773984,1e-08,90.27,90.236,1.69780818]
[1772679774181,0.2,90.3,90.239,1.98213132]
[1772679774485,11.27428338,90.3,90.239,1.98213132]
[1772679774684,11.37477216,90.3,90.239,1.98213132]
[1772679775597,0.30048878,90.3,90.239,1.98213132]
[1772679775984,11.07431975,90.299,90.244,1.98213132]
[1772679776284,0.10115007,90.298,90.244,1.69780818]
[1772679778829,0.10115007,90.298,90.246,1.69780818]
[1772679780789,0.10115007,90.298,90.248,1.69780818]
[1772679783496,0.10115007,90.298,90.249,38.78159314]
[1772679783702,0.10115007,90.298,90.25,1.69780818]
[1772679785491,0.2,90.3,90.25,1.69780818]
[1772679786594,0.2,90.3,90.252,1.69780818]
[1772679789514,0.2,90.3,90.253,38.77987435]
[1772679789714,0.2,90.3,90.254,1.69780818]
[1772679791312,0.110205,90.299,90.258,1.69780818]
[1772679791613,0.2,90.3,90.26,1.69780818]
[1772679791614,0.31075469,90.3,90.26,1.69780818]
[1772679792499,0.2,90.3,90.26,1.69780818]
[1772679792698,0.2,90.3,90.262,1.69780818]
[1772679792699,0.31129806,90.3,90.262,1.69780818]
[1772679794205,0.2,90.3,90.262,1.69780818]
[1772679795522,0.2,90.3,90.264,1.69780818]
[1772679796103,1e-08,90.3,90.264,1.69780818]
[1772679797418,1e-08,90.3,90.265,38.77471887]
[1772679797722,1e-08,90.3,90.266,1.69780818]
[1772679797923,0.2,90.32,90.269,1.69780818]
[1772679798122,0.2,90.32,90.276,0.28432314]
[1772679798307,0.2,90.32,90.268,3.69383402]
[1772679798308,0.2,90.32,90.277,1.69780818]
[1772679799524,0.2,90.32,90.278,38.76913533]
[1772679799712,0.2,90.32,90.279,1.66039982]
[1772679800221,0.11542629,90.319,90.279,1.66039982]
[1772679800804,0.2,90.32,90.279,1.66039982]
[1772679800805,1e-08,90.315,90.279,1.66039982]
[1772679801524,1e-08,90.315,90.28,38.76827647]
[1772679801722,1e-08,90.315,90.281,1.66039982]
[1772679804117,0.11735168,90.315,90.283,1.66039982]
[1772679804421,0.11735168,90.315,90.282,38.76741764]
[1772679804422,0.11735168,90.315,90.282,11.07640504]
[1772679804623,0.11735168,90.315,90.282,38.76741764]
[1772679804827,0.11735168,90.315,90.283,1.66039982]
[1772679807016,0.11735168,90.315,90.284,11.07615967]
[1772679807223,0.11735168,90.315,90.285,1.66039982]
[1772679808731,1e-08,90.315,90.285,1.66039982]
[1772679809329,0.2,90.32,90.287,1.66039982]
[1772679811020,1e-08,90.32,90.287,1.94472296]
[1772679811729,1e-08,90.32,90.289,1.66039982]
[1772679811931,0.12137182,90.342,90.292,1.94472296]
[1772679812129,0.12137182,90.348,90.292,1.94472296]
[1772679812638,0.12179324,90.366,90.293,1.66039982]
[1772679812827,1e-08,90.36,90.307,1.66039982]
[1772679813029,1e-08,90.36,90.322,0.28432314]
[1772679813336,1e-08,90.38,90.336,1.66039982]
[1772679813536,0.2,90.4,90.354,1.66039982]
[1772679813718,0.12220983,90.399,90.362,1.66039982]
[1772679816041,0.12220983,90.399,90.363,12.72687614]
[1772679816428,0.12220983,90.399,90.363,11.06647632]
[1772679817443,0.12220983,90.399,90.358,11.06700936]
[1772679817938,0.2,90.42,90.361,0.28432314]
[1772679818245,11.05387659,90.466,90.375,0.28432314]
[1772679818425,11.05387659,90.466,90.388,1.66039982]
[1772679818624,4.23264773,90.46,90.388,1.66039982]
[1772679818936,82.90407444,90.466,90.388,1.66039982]
[1772679819136,4.23264773,90.45,90.388,1.66039982]
[1772679820022,0.12461076,90.448,90.39,1.66039982]
[1772679821517,0.12537479,90.429,90.384,11.06385423]
[1772679821820,0.12537479,90.429,90.378,11.06455759]
[1772679822019,0.12537479,90.428,90.378,11.06455759]
[1772679822454,0.12537479,90.428,90.379,1.66039982]
[1772679823732,0.12612138,90.419,90.378,11.06455759]
[1772679823931,0.12612138,90.419,90.375,2.77004969]
[1772679823932,0.12612138,90.409,90.375,2.64392831]
[1772679824148,11.06084571,90.409,90.375,2.64392831]
[1772679824441,38.71295999,90.409,90.375,2.64392831]
[1772679824644,4.23264773,90.4,90.359,11.06696621]
[1772679825024,38.71295999,90.409,90.359,11.06696621]
[1772679825941,4.23264773,90.4,90.359,11.06696621]
[1772679826247,11.06206927,90.399,90.359,11.06696621]
[1772679828049,38.71724244,90.399,90.359,11.06696621]
[1772679828439,38.71724244,90.399,90.353,11.06760879]
[1772679828948,38.71724244,90.399,90.349,1.72346051]
[1772679829245,38.71724244,90.399,90.35,11.06806862]
[1772679829748,4.23264773,90.39,90.349,1.72346051]
[1772679829936,4.23264773,90.39,90.332,1.72346051]
[1772679830135,4.23264773,90.38,90.332,1.72346051]
[1772679830436,11.06451719,90.379,90.333,11.07015155]
[1772679830642,11.06451719,90.379,90.334,1.72346051]
[1772679831037,38.72581018,90.379,90.334,1.72346051]
[1772679832634,4.82477569,90.398,90.336,1.72346051]
[1772679832952,4.23264773,90.39,90.336,1.72346051]
[1772679834637,4.23264773,90.39,90.335,38.74467259]
[1772679834638,38.71724244,90.399,90.337,38.74381481]
[1772679834862,38.71724244,90.399,90.338,1.72346051]
[1772679835240,4.23264773,90.41,90.341,1.72346051]
[1772679835437,27.65066774,90.414,90.341,1.72346051]
[1772679835639,11.05962242,90.419,90.351,1.72346051]
[1772679835854,11.05962242,90.419,90.357,1.72346051]
[1772679836944,27.64664998,90.427,90.359,1.72346051]
[1772679837660,4.23264773,90.42,90.359,1.72346051]
[1772679838048,27.64664998,90.427,90.359,1.72346051]
[1772679839239,4.23264773,90.42,90.361,1.72346051]
[1772679840156,4.23264773,90.41,90.361,1.72346051]
[1772679840376,4.23264773,90.42,90.361,1.72346051]
[1772679840551,4.23264773,90.44,90.368,1.72346051]
[1772679840866,27.63988546,90.449,90.368,1.72346051]
[1772679841051,27.63988546,90.449,90.378,1.72346051]
[1772679841238,149.09765135,90.503,90.363,3.69383402]
[1772679841239,4.23264773,90.45,90.383,1.72346051]
[1772679841443,4.23264773,90.44,90.383,1.72346051]
[1772679842054,4.23264773,90.45,90.383,1.72346051]
[1772679842259,38.69156191,90.459,90.383,1.72346051]
[1772679842956,4.23264773,90.45,90.383,1.72346051]
[1772679845564,11.05595418,90.449,90.385,1.72346051]
[1772679846063,11.05595418,90.449,90.384,38.72366789]
[1772679846064,11.05595418,90.449,90.387,1.72346051]
[1772679846364,38.69583964,90.449,90.387,1.72346051]
[1772679846567,11.05595418,90.449,90.387,1.72346051]
[1772679847153,11.05595418,90.449,90.388,1.72346051]
[1772679847859,4.23264773,90.46,90.386,0.28432314]
[1772679847860,27.63955533,90.451,90.392,3.69383402]
[1772679848061,27.63955533,90.451,90.393,1.72346051]
[1772679848660,11.05473197,90.459,90.393,1.72346051]
[1772679848859,38.69156191,90.459,90.393,1.72346051]
[1772679850268,38.69156191,90.459,90.395,1.72346051]